bitfinex/quotes_SOLUSD_20220103
["timestamp","ask_amount","ask_price","bid_price","bid_amount"]
[1641173666779,11.32775111,174.8,174.72,96.5231]
[1641173670085,11.32775111,174.8,174.72,88.4231]
[1641173670285,11.32775111,174.8,174.72,96.5231]
[1641173670483,11.58775111,174.8,174.72,87.9231]
[1641173670684,11.32775111,174.8,174.72,87.9231]
[1641173670885,11.82775111,174.8,174.72,87.9231]
[1641173671483,11.32775111,174.8,174.72,87.9231]
[1641173671685,11.32775111,174.8,174.72,88.4231]
[1641173672288,11.82775111,174.8,174.72,88.4231]
[1641173672488,11.32775111,174.8,174.72,88.4231]
[1641173673992,8.5831,174.8,174.72,88.4231]
[1641173675794,9.0831,174.8,174.72,88.4231]
[1641173676297,8.5831,174.8,174.72,88.4231]
[1641173676894,9.3431,174.8,174.72,87.9231]
[1641173677295,10.6213,174.8,174.72,87.9231]
[1641173681000,10.6213,174.8,174.72,87.6631]
[1641173681200,10.6213,174.8,174.72,79.0793]
[1641173681801,10.6213,174.8,174.72,77.7569]
[1641173682500,10.6213,174.8,174.72,78.0169]
[1641173687310,10.3613,174.8,174.72,78.0169]
[1641173687606,10.3613,174.8,174.72,86.6007]
[1641173688606,10.6213,174.8,174.72,86.6007]
[1641173688806,10.6213,174.8,174.72,78.0169]
[1641173689230,10.6213,174.8,174.7,1.3022]
[1641173689428,16.1233,174.8,174.7,1.3022]
[1641173690231,17.69138436,174.8,174.7,1.3022]
[1641173690630,17.69138436,174.8,174.7,1.5622]
[1641173690830,12.18938436,174.8,174.7,1.5622]
[1641173691031,1.56808436,174.79,174.7,1.5622]
[1641173691535,8.586,174.75,174.7,1.5622]
[1641173691734,10.98215955,174.75,174.7,0.26]
[1641173692135,8.586,174.75,174.69,80.0487]
[1641173692333,8.586,174.75,174.69,0.76]
[1641173692534,8.586,174.75,174.69,0.5]
[1641173692733,8.586,174.75,174.68,9.3458]
[1641173693637,8.586,174.75,174.68,9.0858]
[1641173694742,8.586,174.75,174.68,0.5]
[1641173694935,9.086,174.75,174.67,9.9257]
[1641173695336,9.086,174.75,174.67,1.8257]
[1641173695535,10.3637,174.75,174.67,1.8257]
[1641173695936,8.586,174.75,174.67,18.5119]
[1641173696136,8.5852,174.76,174.67,18.2719]
[1641173696539,1.56808436,174.79,174.67,18.2719]
[1641173696742,0.5,174.79,174.67,18.2719]
[1641173697139,2.61300459,174.78,174.67,18.2719]
[1641173697742,8.585,174.77,174.67,18.2719]
[1641173699544,8.585,174.77,174.67,17.7719]
[1641173700145,8.585,174.77,174.67,17.4462]
[1641173700747,7.741855,174.77,174.67,17.4462]
[1641173706355,9.056255,174.77,174.67,17.4462]
[1641173707555,9.816255,174.77,174.67,9.3462]
[1641173707986,9.816255,174.77,174.67,0.76]
[1641173708386,9.816255,174.77,174.66,5.26034676]
[1641173708784,9.816255,174.77,174.66,2.0112]
[1641173709386,9.816255,174.77,174.66,1.7512]
[1641173710890,9.816255,174.77,174.66,2.0112]
[1641173713194,9.816255,174.77,174.66,0.5]
[1641173713394,9.816255,174.77,174.65,17.1869]
[1641173714494,9.816255,174.77,174.65,17.4469]
[1641173716197,9.816255,174.77,174.65,0.76]
[1641173716398,9.556255,174.77,174.65,0.26]
[1641173716598,9.556255,174.77,174.64,76.2755]
[1641173717099,1.56808436,174.76,174.64,76.2755]
[1641173717397,8.5877,174.72,174.64,84.8631]
[1641173717600,2.31256058,174.71,174.64,84.8631]
[1641173718097,2.31256058,174.71,174.65,8.1]
[1641173718297,8.5877,174.72,174.65,9.52669368]
[1641173718497,8.5877,174.72,174.65,8.86]
[1641173718697,8.5871,174.73,174.65,17.4473]
[1641173719399,2.42892791,174.72,174.65,17.4473]
[1641173721203,8.5871,174.73,174.65,17.4473]
[1641173721404,8.5871,174.73,174.65,9.3473]
[1641173724404,8.5871,174.73,174.65,8.8473]
[1641173724606,8.5871,174.73,174.65,0.26]
[1641173724904,1.3064,174.72,174.65,0.26]
[1641173725107,9.8939,174.72,174.64,8.36]
[1641173725306,9.8939,174.72,174.64,0.26]
[1641173725506,9.8939,174.72,174.63,78.57449279]
[1641173726006,9.8939,174.72,174.63,79.07449279]
[1641173726807,9.8939,174.72,174.64,8.5877]
[1641173727309,9.8939,174.72,174.64,9.3477]
[1641173732114,9.8939,174.72,174.65,8.1]
[1641173732516,9.8939,174.72,174.65,8.86]
[1641173733317,9.8939,174.72,174.65,8.36]
[1641173733516,10.3939,174.72,174.65,0.26]
[1641173733915,10.3939,174.72,174.63,87.42269279]
[1641173734537,9.8939,174.72,174.63,87.42269279]
[1641173734738,10.3939,174.72,174.63,87.42269279]
[1641173734937,10.3939,174.72,174.63,87.92269279]
[1641173735337,10.3939,174.72,174.63,87.66269279]
[1641173735739,10.6539,174.72,174.63,87.66269279]
[1641173736141,10.3939,174.72,174.63,87.66269279]
[1641173736742,10.3939,174.72,174.63,87.92269279]
[1641173737543,10.3939,174.72,174.63,96.02269279]
[1641173738844,10.6539,174.72,174.63,96.02269279]
[1641173739248,10.6539,174.72,174.63,95.76269279]
[1641173740448,10.6539,174.72,174.63,9.24239279]
[1641173740646,10.6539,174.72,174.63,1.14239279]
[1641173740848,10.6539,174.72,174.63,0.64239279]
[1641173741052,10.6539,174.72,174.63,1.14239279]
[1641173741650,10.6539,174.72,174.63,0.64239279]
[1641173744361,8.1,174.71,174.63,0.64239279]
[1641173744551,0.26,174.71,174.63,0.64239279]
[1641173744752,8.5903,174.67,174.63,0.64239279]
[1641173744951,2.58073082,174.66,174.63,0.64239279]
[1641173745155,2.58073082,174.66,174.64,2.95418797]
[1641173745551,2.58073082,174.66,174.64,3.21418797]
[1641173746954,11.17103082,174.66,174.64,3.21418797]
[1641173747253,11.17103082,174.66,174.64,2.95418797]
[1641173747857,3.03219997,174.65,174.63,0.64239279]
[1641173748054,3.11021197,174.65,174.63,0.64239279]
[1641173748255,3.11021197,174.65,174.63,3.59658076]
[1641173748455,11.17103082,174.66,174.63,3.59658076]
[1641173748658,11.17103082,174.66,174.63,3.85658076]
[1641173749658,11.17103082,174.66,174.63,2.85658076]
[1641173749859,11.17103082,174.66,174.63,2.59658076]
[1641173751264,3.03219997,174.65,174.63,2.59658076]
[1641173751663,8.5903,174.66,174.63,2.59658076]
[1641173752360,8.5903,174.66,174.63,2.09658076]
[1641173753464,8.5903,174.66,174.63,2.35658076]
[1641173753965,8.5898,174.67,174.63,2.35658076]
[1641173755168,8.5898,174.67,174.63,2.09658076]
[1641173755366,8.5898,174.67,174.63,2.35658076]
[1641173757569,8.5898,174.67,174.63,2.09658076]
[1641173757767,8.5898,174.67,174.63,2.35658076]
[1641173760971,11.05448164,174.68,174.63,2.35658076]
[1641173762873,11.05448164,174.68,174.63,2.09658076]
[1641173763078,8.5895,174.68,174.63,2.09658076]
[1641173763772,8.5895,174.68,174.63,2.35658076]
[1641173767578,8.589,174.69,174.63,2.35658076]
[1641173767775,1.56808436,174.72,174.63,2.35658076]
[1641173767776,2.83128436,174.72,174.63,10.94478076]
[1641173767974,1.2632,174.72,174.63,11.44478076]
[1641173768673,2.73590133,174.73,174.63,11.44478076]
[1641173769876,2.73590133,174.73,174.63,12.87147444]
[1641173772381,9.8274,174.75,174.63,12.87147444]
[1641173772578,1.2411,174.75,174.63,12.87147444]
[1641173773579,3.02744895,174.74,174.63,12.87147444]
[1641173773879,3.52744895,174.74,174.63,12.87147444]
[1641173774081,3.02744895,174.74,174.63,12.87147444]
[1641173774780,2.83860254,174.74,174.64,54.0]
[1641173775083,3.33860254,174.74,174.68,8.5859]
[1641173775279,2.83860254,174.74,174.68,8.5859]
[1641173775479,9.8326,174.76,174.68,8.8459]
[1641173775880,1.2468,174.76,174.68,8.8459]
[1641173776580,2.60133333,174.75,174.68,8.8459]
[1641173779793,2.60133333,174.75,174.68,0.26]
[1641173779989,2.60133333,174.75,174.66,9.3464]
[1641173780592,11.18793333,174.75,174.66,9.3464]
[1641173781193,1.2785,174.74,174.66,9.3464]
[1641173791324,1.2785,174.74,174.65,88.3319]
[1641173791524,9.7475,174.74,174.65,1.223]
[1641173791823,9.7475,174.74,174.63,79.9609]
[1641173792024,9.7475,174.74,174.63,80.4609]
[1641173792224,9.7475,174.74,174.63,79.9609]
[1641173792424,9.7475,174.74,174.63,80.4609]
[1641173792625,9.7475,174.74,174.63,80.7209]
[1641173792826,18.3346,174.74,174.63,88.8088]
[1641173793426,19.90268436,174.74,174.63,88.8088]
[1641173794926,19.90268436,174.74,174.63,89.3088]
[1641173796227,19.90268436,174.74,174.63,88.8088]
[1641173797630,18.3346,174.74,174.63,88.8088]
[1641173801235,9.8656,174.74,174.63,89.3088]
[1641173801635,11.43368436,174.74,174.63,89.3088]
[1641173802539,10.6256,174.74,174.63,89.3088]
[1641173802737,10.3656,174.74,174.63,89.3088]
[1641173803037,9.8656,174.74,174.63,89.3088]
[1641173803540,1.2785,174.74,174.66,8.5868]
[1641173803939,1.2785,174.74,174.66,9.3468]
[1641173804141,1.2785,174.74,174.66,0.26]
[1641173804441,2.0385,174.74,174.66,0.26]
[1641173804642,1.5385,174.74,174.64,2.0193]
[1641173804942,1.7785,174.74,174.64,2.0193]
[1641173805842,10.3656,174.74,174.64,10.6066]
[1641173806942,10.6256,174.74,174.64,10.1066]
[1641173807743,10.6256,174.74,174.64,10.6066]
[1641173807943,4.16941769,174.75,174.64,10.6066]
[1641173808350,4.66941769,174.75,174.64,10.6066]
[1641173809351,3.10133333,174.75,174.64,10.6066]
[1641173809751,1.56808436,174.74,174.64,10.6066]
[1641173810152,1.56808436,174.74,174.64,10.3466]
[1641173810354,2.06808436,174.74,174.64,10.3466]
[1641173810554,2.53416058,174.72,174.64,10.3466]
[1641173810852,2.53416058,174.72,174.64,9.8466]
[1641173811454,2.53416058,174.72,174.64,8.5873]
[1641173811658,3.03416058,174.72,174.64,8.5873]
[1641173811852,2.53416058,174.72,174.64,8.5873]
[1641173812452,3.03416058,174.72,174.64,8.5873]
[1641173812653,2.53416058,174.72,174.64,9.3473]
[1641173812856,11.62216058,174.72,174.64,8.8473]
[1641173813064,11.12216058,174.72,174.64,8.8473]
[1641173813454,11.62216058,174.72,174.64,8.8473]
[1641173813855,3.03416058,174.72,174.64,9.3473]
[1641173814055,2.53416058,174.72,174.64,9.3473]
[1641173816988,2.53416058,174.72,174.64,8.8473]
[1641173817184,2.53416058,174.72,174.64,9.3473]
[1641173820384,1.309,174.74,174.64,9.3473]
[1641173821287,2.64695894,174.73,174.65,1.2528]
[1641173821484,2.64695894,174.73,174.68,8.5857]
[1641173821884,2.64695894,174.73,174.68,9.3457]
[1641173823188,2.64695894,174.73,174.68,8.8457]
[1641173823386,2.64695894,174.73,174.68,9.3457]
[1641173824187,2.64695894,174.73,174.68,8.8457]
[1641173825491,2.64695894,174.73,174.68,9.3457]
[1641173827099,2.64695894,174.73,174.68,8.8457]
[1641173827301,1.56808436,174.76,174.68,8.8457]
[1641173827502,1.56808436,174.76,174.68,9.3457]
[1641173827699,1.56808436,174.76,174.68,47.3691326]
[1641173827901,1.56808436,174.78,174.69,1.42669368]
[1641173828102,1.56808436,174.78,174.73,8.5823]
[1641173828602,1.56808436,174.78,174.73,9.3423]
[1641173828803,2.29554461,174.8,174.73,9.3423]
[1641173829202,2.29554461,174.8,174.73,8.8423]
[1641173829600,2.79408436,174.82,174.73,8.8423]
[1641173830002,2.79408436,174.82,174.73,9.3423]
[1641173830609,2.29223872,174.81,174.73,9.3423]
[1641173830808,2.29223872,174.81,174.73,8.8423]
[1641173831109,2.29223872,174.81,174.71,9.8323]
[1641173831313,1.56808436,174.82,174.71,17.1838]
[1641173831511,1.56808436,174.82,174.81,2.29223872]
[1641173831707,3.09597507,174.85,174.81,4.38881948]
[1641173832111,3.09597507,174.85,174.81,11.75781948]
[1641173832509,3.09597507,174.85,174.81,11.51781948]
[1641173832510,2.93803158,174.84,174.81,11.51781948]
[1641173832909,3.09597507,174.89,174.81,11.51781948]
[1641173833111,0.26,174.89,174.81,4.64881948]
[1641173833509,1.287,174.9,174.81,4.64881948]
[1641173833510,1.547,174.9,174.81,4.64881948]
[1641173834309,2.32963143,174.89,174.81,4.64881948]
[1641173834510,2.58963143,174.89,174.81,4.64881948]
[1641173834711,11.16963143,174.89,174.81,4.64881948]
[1641173835532,2.32963143,174.89,174.81,4.64881948]
[1641173836032,2.58963143,174.89,174.81,4.64881948]
[1641173837736,10.90983143,174.89,174.81,4.64881948]
[1641173838136,14.0058065,174.89,174.81,4.64881948]
[1641173838936,10.90983143,174.89,174.81,4.64881948]
[1641173839138,11.16983143,174.89,174.81,4.64881948]
[1641173839340,13.09652511,174.89,174.81,4.38881948]
[1641173840139,9.59472784,174.88,174.81,4.38881948]
[1641173840338,8.5814,174.87,174.81,2.29223872]
[1641173840540,2.73215655,174.86,174.81,2.29223872]
[1641173841339,2.99215655,174.86,174.81,2.29223872]
[1641173841538,2.73215655,174.86,174.81,2.29223872]
[1641173841941,11.31375655,174.86,174.81,2.29223872]
[1641173842339,11.57375655,174.86,174.81,2.29223872]
[1641173842539,11.31375655,174.86,174.81,2.29223872]
[1641173843543,2.73215655,174.86,174.81,2.29223872]
[1641173843740,2.73215655,174.86,174.81,2.55223872]
[1641173846246,2.73215655,174.86,174.81,2.29223872]
[1641173847050,1.62464548,174.84,174.81,2.29223872]
[1641173847247,7.02372406,174.83,174.81,2.29223872]
[1641173847447,6.08810486,174.83,174.81,2.29223872]
[1641173848947,6.08810486,174.83,174.81,2.55223872]
[1641173849347,6.58810486,174.83,174.81,2.55223872]
[1641173849553,40.9356192,174.82,174.81,2.29223872]
[1641173849948,41.6956192,174.82,174.81,2.29223872]
[1641173850151,1.6956192,174.82,174.81,2.29223872]
[1641173850749,10.2792192,174.82,174.81,2.29223872]
[1641173851150,11.90415164,174.82,174.81,2.29223872]
[1641173851951,10.2792192,174.82,174.81,2.29223872]
[1641173853753,10.0192192,174.82,174.81,2.29223872]
[1641173854955,11.64413085,174.82,174.81,2.29223872]
[1641173858856,3.06053085,174.82,174.81,2.29223872]
[1641173859862,1.4356192,174.82,174.81,2.29223872]
[1641173860061,0.5,174.82,174.81,2.29223872]
[1641173860360,0.5,174.82,174.81,4.38881948]
[1641173860560,0.5,174.82,174.81,4.64881948]
[1641173861663,0.5,174.82,174.81,2.55223872]
[1641173863883,4.46781917,174.82,174.81,2.55223872]
[1641173867087,3.96781917,174.82,174.81,2.55223872]
[1641173867287,1.62491165,174.84,174.81,4.64881948]
[1641173867887,1.62491165,174.84,174.81,4.38881948]
[1641173868092,4.22748457,174.84,174.81,4.38881948]
[1641173868287,3.96781917,174.83,174.81,2.29223872]
[1641173873698,2.60257292,174.84,174.82,2.09658076]
[1641173874298,2.60257292,174.84,174.81,2.29223872]
[1641173875701,10.20641165,174.85,174.82,2.09658076]
[1641173875904,1.62491165,174.85,174.82,2.09658076]
[1641173876501,1.62491165,174.86,174.82,2.09658076]
[1641173876702,4.59371112,174.86,174.82,2.09658076]
[1641173877302,1.62491165,174.85,174.82,2.09658076]
[1641173878005,3.96781917,174.84,174.82,2.35658076]
[1641173878204,3.96781917,174.84,174.82,0.26]
[1641173878502,1.62491165,174.85,174.83,2.09658076]
[1641173881506,2.55848675,174.83,174.81,2.55223872]
[1641173881908,2.55848675,174.83,174.81,4.64881948]
[1641173885115,2.55848675,174.83,174.81,4.38881948]
[1641173885616,0.9356192,174.82,174.81,2.29223872]
[1641173885815,3.96781917,174.82,174.81,2.29223872]
[1641173887314,2.55848675,174.83,174.81,4.38881948]
[1641173889938,2.55848675,174.83,174.81,4.64881948]
[1641173890337,1.62491165,174.85,174.81,4.64881948]
[1641173890940,10.20591165,174.86,174.81,4.64881948]
[1641173891340,2.49176526,174.85,174.81,4.38881948]
[1641173892141,2.49176526,174.85,174.81,4.64881948]
[1641173892440,2.49176526,174.85,174.81,4.38881948]
[1641173893645,10.20591165,174.86,174.81,4.38881948]
[1641173893844,1.62491165,174.86,174.81,4.64881948]
[1641173894046,1.62491165,174.85,174.81,4.38881948]
[1641173894647,2.71365272,174.84,174.81,4.38881948]
[1641173894847,3.96781917,174.83,174.81,2.29223872]
[1641173897660,12.92056437,174.84,174.81,2.29223872]
[1641173898750,3.96781917,174.83,174.81,2.29223872]
[1641173905659,3.96781917,174.83,174.81,2.55223872]
[1641173905859,1.62491165,174.86,174.81,2.55223872]
[1641173906059,1.62491165,174.86,174.82,2.09658076]
[1641173906460,1.62491165,174.87,174.82,2.35658076]
[1641173909264,13.00785551,174.88,174.82,2.35658076]
[1641173909462,13.76785551,174.88,174.82,2.35658076]
[1641173910363,1.62491165,174.87,174.82,2.35658076]
[1641173912262,4.42775551,174.88,174.82,2.35658076]
[1641173912761,4.42775551,174.88,174.82,10.93558076]
[1641173916369,4.42775551,174.88,174.82,2.35658076]
[1641173916968,4.68775551,174.88,174.82,2.35658076]
[1641173917373,1.62491165,174.86,174.82,2.35658076]
[1641173917570,3.01904137,174.85,174.82,2.35658076]
[1641173921376,3.96781917,174.84,174.82,2.35658076]
[1641173922794,1.62491165,174.86,174.82,2.35658076]
[1641173923394,1.62491165,174.87,174.82,2.35658076]
[1641173923796,2.83699704,174.86,174.82,2.35658076]
[1641173927501,1.62491165,174.88,174.82,2.35658076]
[1641173927702,1.62491165,174.88,174.82,11.43548076]
[1641173927899,1.2723,174.91,174.82,11.43548076]
[1641173927900,11.47581165,174.91,174.82,11.43548076]
[1641173928101,1.62491165,174.91,174.82,11.43548076]
[1641173928302,2.12491165,174.91,174.82,11.43548076]
[1641173928700,1.62491165,174.91,174.82,12.75808076]
[1641173928900,2.63690016,174.93,174.82,12.75808076]
[1641173930504,4.26181181,174.93,174.82,12.75808076]
[1641173931904,4.26181181,174.93,174.82,20.85808076]
[1641173936610,4.52181181,174.93,174.82,20.85808076]
[1641173936812,1.62491165,174.91,174.82,20.85808076]
[1641173937411,1.62491165,174.92,174.82,20.85808076]
[1641173938812,4.26181181,174.93,174.82,20.85808076]
[1641173939012,4.52181181,174.93,174.82,11.99808076]
[1641173939312,5.94850549,174.93,174.82,11.99808076]
[1641173939512,1.62491165,174.91,174.82,11.99808076]
[1641173940313,2.12491165,174.91,174.82,11.99808076]
[1641173940615,2.12491165,174.91,174.82,12.75808076]
[1641173940815,10.70341165,174.91,174.82,12.75808076]
[1641173941215,10.70341165,174.91,174.82,12.25808076]
[1641173941417,1.2914,174.9,174.82,12.25808076]
[1641173941818,8.5789,174.89,174.82,12.25808076]
[1641173942018,8.5789,174.89,174.82,10.93548076]
[1641173943620,8.5789,174.89,174.82,2.35658076]
[1641173944022,9.0789,174.89,174.82,2.09658076]
[1641173944222,18.86559368,174.89,174.81,2.29223872]
[1641173945124,8.5816,174.84,174.81,2.29223872]
[1641173945623,3.96781917,174.83,174.81,2.29223872]
[1641173946222,3.96781917,174.83,174.81,4.38881948]
[1641173946423,3.03219997,174.83,174.81,2.29223872]
[1641173946623,2.88087551,174.86,174.81,2.29223872]
[1641173946826,8.5816,174.83,174.81,2.29223872]
[1641173947925,12.54941917,174.83,174.81,2.29223872]
[1641173951656,12.80941917,174.83,174.81,2.29223872]
[1641173951858,13.30941917,174.83,174.81,2.29223872]
[1641173952358,14.93433082,174.83,174.81,2.29223872]
[1641173957158,14.17433082,174.83,174.81,2.29223872]
[1641173957960,12.54941917,174.83,174.81,2.29223872]
[1641173960862,12.54941917,174.83,174.81,2.55223872]
[1641173961263,12.54941917,174.83,174.81,2.29223872]
[1641173961861,12.54941917,174.83,174.81,2.55223872]
[1641173962260,12.54941917,174.83,174.81,2.29223872]
[1641173962462,12.80941917,174.83,174.81,2.29223872]
[1641173962661,13.30941917,174.83,174.81,2.29223872]
[1641173963463,53.0,174.82,174.81,3.872e-05]
[1641173963666,61.5846,174.82,174.81,3.872e-05]
[1641173963866,63.77129368,174.82,174.81,3.872e-05]
[1641173964366,65.39620533,174.82,174.81,3.872e-05]
[1641173965171,65.06849368,174.82,174.81,3.872e-05]
[1641173965767,12.06849368,174.82,174.81,3.872e-05]
[1641173967172,2.27218661,174.81,174.66,3.24914676]
[1641173967371,8.5868,174.73,174.66,12.33564676]
[1641173967771,8.5868,174.73,174.66,11.83564676]
[1641173968171,8.5868,174.73,174.66,8.5865]
[1641173968376,8.5868,174.73,174.66,8.8465]
[1641173968971,8.5868,174.73,174.66,9.3465]
[1641173969372,8.5861,174.75,174.66,9.3465]
[1641173970373,11.33656723,174.75,174.66,9.3465]
[1641173971576,11.33656723,174.75,174.66,12.59564676]
[1641173972874,11.33656723,174.75,174.66,9.3465]
[1641173973875,8.5861,174.75,174.66,9.3465]
[1641173974679,2.71842697,174.76,174.66,12.59564676]
[1641173976381,8.585,174.77,174.66,12.59564676]
[1641173977383,10.8901874,174.77,174.66,12.59564676]
[1641173979280,2.3051874,174.77,174.66,12.59564676]
[1641173979480,2.3051874,174.77,174.67,8.1]
[1641173979680,2.3051874,174.77,174.71,8.5841]
[1641173980082,2.3051874,174.77,174.71,8.8441]
[1641173981384,2.3051874,174.77,174.71,9.3441]
[1641173981985,8.5837,174.79,174.71,9.3441]
[1641173982588,2.84355145,174.81,174.71,9.3441]
[1641173982788,1.2459,174.81,174.71,9.3441]
[1641173983189,2.22436296,174.8,174.71,9.3441]
[1641173983788,10.80766296,174.8,174.71,9.3441]
[1641173984996,2.22436296,174.8,174.71,9.3441]
[1641173985193,10.18045145,174.82,174.71,9.3441]
[1641173985393,10.18045145,174.82,174.71,15.0311]
[1641173985895,1.59765145,174.84,174.71,23.1311]
[1641173986095,2.94055145,174.84,174.71,23.1311]
[1641173986294,2.36342616,174.83,174.71,23.1311]
[1641173986499,10.94542616,174.83,174.75,8.5822]
[1641173986895,10.94542616,174.83,174.75,9.3422]
[1641173987295,10.94542616,174.83,174.75,0.26]
[1641173987496,10.94542616,174.83,174.72,84.4184]
[1641173987497,11.20542616,174.83,174.72,84.4184]
[1641173987698,11.70542616,174.83,174.72,84.4184]
[1641173988195,8.5836,174.8,174.72,84.4184]
[1641173988400,2.55223473,174.79,174.72,84.4184]
[1641173992222,2.55223473,174.79,174.72,10.6591]
[1641173996422,11.13603473,174.79,174.72,8.8433]
[1641173996822,2.55223473,174.79,174.72,8.8433]
[1641173997023,2.55223473,174.79,174.72,9.3433]
[1641174000030,8.5834,174.8,174.72,9.3433]
[1641174000832,8.5829,174.81,174.72,9.3433]
[1641174001332,2.28651411,174.8,174.7,8.5845]
[1641174001535,2.54651411,174.8,174.7,8.5845]
[1641174001733,3.04651411,174.8,174.7,9.0845]
[1641174002133,1.2228,174.79,174.7,9.0845]
[1641174002634,1.4828,174.79,174.7,9.0845]
[1641174002834,8.5844,174.78,174.7,9.3445]
[1641174003038,2.30003688,174.77,174.7,9.3445]
[1641174004539,10.88463688,174.77,174.7,9.3445]
[1641174004740,1.42669368,174.76,174.7,8.8445]
[1641174004940,2.30003688,174.77,174.69,8.5853]
[1641174005340,2.80003688,174.77,174.69,8.5853]
[1641174005543,3.06003688,174.77,174.67,1.2271]
[1641174005742,2.71498549,174.72,174.67,1.2271]
[1641174006340,2.71498549,174.72,174.67,10.073]
[1641174006542,2.71498549,174.72,174.67,8.8459]
[1641174007144,2.71498549,174.72,174.63,3.24914676]
[1641174007145,11.30188549,174.72,174.63,11.34914676]
[1641174007346,11.56188549,174.72,174.62,4.46854676]
[1641174007946,11.56188549,174.72,174.62,1.7194]
[1641174008347,12.06188549,174.72,174.62,1.7194]
[1641174008645,12.06188549,174.72,174.62,1.9794]
[1641174008945,12.06188549,174.72,174.62,10.3081]
[1641174009146,12.06188549,174.72,174.62,9.8081]
[1641174009750,1.42669368,174.71,174.6,1.0]
[1641174009947,8.5899,174.66,174.6,9.5898]
[1641174010147,2.66391012,174.65,174.6,9.8498]
[1641174010949,8.5899,174.66,174.6,10.3498]
[1641174013252,8.5899,174.66,174.6,1.76]
[1641174014456,9.0899,174.66,174.6,1.76]
[1641174014855,9.0899,174.66,174.6,1.5]
[1641174015355,8.5899,174.66,174.6,1.5]
[1641174016472,8.5899,174.66,174.6,1.76]
[1641174018674,8.5899,174.66,174.6,1.26]
[1641174021874,8.5899,174.66,174.6,1.76]
[1641174022075,8.5899,174.66,174.6,0.79791311]
[1641174022474,8.5899,174.66,174.6,0.53791311]
[1641174022676,8.5899,174.66,174.6,0.03791311]
[1641174024579,9.8963,174.66,174.6,0.03791311]
[1641174025886,10.3963,174.66,174.6,0.03791311]
[1641174028085,8.5899,174.66,174.6,0.03791311]
[1641174028285,1.2853,174.69,174.6,8.13791311]
[1641174028486,1.59765145,174.7,174.6,17.48761311]
[1641174029287,2.6319083,174.69,174.6,17.48761311]
[1641174031390,8.5873,174.72,174.6,17.48761311]
[1641174032088,8.5873,174.72,174.64,8.5876]
[1641174032287,8.5873,174.72,174.61,83.7037]
[1641174032489,8.5892,174.69,174.61,83.9637]
[1641174032788,3.95422215,174.71,174.61,83.9637]
[1641174032989,4.21422215,174.71,174.61,83.9637]
[1641174033189,4.71422215,174.71,174.61,83.9637]
[1641174033389,4.71422215,174.71,174.61,92.553]
[1641174033789,8.5899,174.67,174.61,83.9637]
[1641174033992,2.55623301,174.66,174.61,83.9637]
[1641174034389,2.55623301,174.66,174.61,9.6354]
[1641174034590,2.55623301,174.66,174.61,8.36]
[1641174035490,8.5894,174.69,174.61,8.36]
[1641174036692,2.20963767,174.68,174.61,8.36]
[1641174036900,8.5901,174.67,174.61,8.36]
[1641174039897,8.5901,174.67,174.61,0.26]
[1641174040098,8.5901,174.67,174.6,0.03791311]
[1641174040704,10.79913767,174.68,174.6,8.62741311]
[1641174040903,10.79913767,174.68,174.6,9.12741311]
[1641174041201,10.79913767,174.68,174.6,9.38741311]
[1641174042030,10.79913767,174.68,174.6,0.79791311]
[1641174042331,10.79913767,174.68,174.6,0.03791311]
[1641174043629,10.79913767,174.68,174.6,8.62761311]
[1641174044030,10.79913767,174.68,174.6,8.88761311]
[1641174044833,11.05913767,174.68,174.6,8.88761311]
[1641174045838,11.05913767,174.68,174.6,0.29791311]
[1641174046046,11.05913767,174.68,174.6,0.03791311]
[1641174046241,18.22713767,174.68,174.6,0.03791311]
[1641174046439,16.6902,174.58,174.54,8.1]
[1641174046638,3.96781917,174.57,174.51,4.87780319]
[1641174046845,2.16596569,174.56,174.51,4.87780319]
[1641174047038,2.16596569,174.56,174.55,2.24914676]
[1641174047238,2.16596569,174.56,174.52,2.24914676]
[1641174047640,10.76116569,174.56,174.52,2.24914676]
[1641174048339,10.76116569,174.56,174.48,4.87780319]
[1641174048538,10.76116569,174.56,174.48,4.52108221]
[1641174048739,10.76116569,174.56,174.47,81.0022]
[1641174048940,11.26116569,174.56,174.47,81.0022]
[1641174049141,11.26116569,174.56,174.47,8.5957]
[1641174049348,11.26116569,174.56,174.46,79.1603]
[1641174049543,11.52116569,174.56,174.46,79.1603]
[1641174050446,11.26116569,174.56,174.46,79.1603]